bitfinex-derivatives/quotes_BTCF0:USTF0_20251118
["timestamp","ask_amount","ask_price","bid_price","bid_amount"]
[1763467487897,0.04417413,91392.0,91391.0,0.04495]
[1763467488093,0.04417413,91392.0,91391.0,0.02381]
[1763467488386,0.04417413,91392.0,91391.0,0.001]
[1763467491184,0.02183,91380.0,91379.0,0.03919733]
[1763467491494,0.00219803,91380.0,91379.0,0.08314733]
[1763467491695,0.00219803,91380.0,91379.0,0.04395]
[1763467492286,0.04417413,91392.0,91391.0,0.04395]
[1763467494396,0.04417413,91392.0,91391.0,0.04495]
[1763467495086,0.00016413,91392.0,91391.0,0.04495]
[1763467495493,0.03930119,91417.0,91391.0,0.04495]
[1763467495692,0.04620803,91410.0,91409.0,0.04395]
[1763467495889,0.04620803,91410.0,91395.0,0.01357]
[1763467496089,0.02183,91396.0,91395.0,0.05752]
[1763467496288,0.04401,91396.0,91395.0,0.05752]
[1763467496797,0.04401,91396.0,91395.0,0.04395]
[1763467497395,0.04359,91388.0,91387.0,0.08400948]
[1763467497696,0.04359,91388.0,91387.0,0.04474]
[1763467498092,0.04536,91387.0,91386.0,0.00016413]
[1763467498899,0.04536,91378.0,91377.0,0.08400948]
[1763467499095,0.00219803,91380.0,91379.0,0.04474]
[1763467499600,0.00019803,91380.0,91379.0,0.04474]
[1763467500194,0.04552413,91389.0,91388.0,0.02145]
[1763467500595,0.04552413,91389.0,91388.0,0.04474]
[1763467501102,0.00016413,91389.0,91388.0,0.04474]
[1763467501600,0.02276413,91389.0,91388.0,0.04474]
[1763467501896,0.00016413,91389.0,91388.0,0.04474]
[1763467502300,0.03930119,91397.0,91396.0,0.04474]
[1763467502602,0.0009307,91400.0,91399.0,0.04474]
[1763467502801,0.0235307,91400.0,91399.0,0.04474]
[1763467503701,0.0009307,91400.0,91399.0,0.04474]
[1763467504398,0.04536,91401.0,91400.0,0.04693803]
[1763467504599,0.0226,91401.0,91400.0,0.04693803]
[1763467504800,0.00016413,91409.0,91408.0,0.04474]
[1763467505600,0.03930119,91424.0,91423.0,0.04474]
[1763467505800,0.03930119,91427.0,91426.0,0.04474]
[1763467506010,0.0226,91414.0,91413.0,0.05602]
[1763467506307,0.04536,91428.0,91427.0,0.04474]
[1763467506505,0.04536,91428.0,91413.0,0.01128]
[1763467506707,0.04536,91412.0,91411.0,0.04490413]
[1763467507203,0.04536,91412.0,91411.0,0.00016413]
[1763467507802,0.04536,91412.0,91411.0,0.02161413]
[1763467507996,0.04536,91412.0,91411.0,0.04490413]
[1763467508310,0.08466119,91420.0,91419.0,0.04474]
[1763467508603,0.08466119,91420.0,91411.0,0.00016413]
[1763467508604,0.03930119,91423.0,91422.0,0.05842]
[1763467508804,0.001,91428.0,91427.0,0.04474]
[1763467509196,0.04636,91428.0,91427.0,0.04474]
[1763467509796,0.04536,91428.0,91427.0,0.04474]
[1763467510001,0.0226,91414.0,91413.0,0.05842]
[1763467510509,0.003,91428.0,91413.0,0.05842]
[1763467510712,0.04836,91428.0,91427.0,0.04474]
[1763467510905,0.003,91428.0,91427.0,0.04474]
[1763467511207,0.002,91428.0,91427.0,0.04474]
[1763467511409,0.04736,91428.0,91427.0,0.04474]
[1763467512018,0.04536,91423.0,91422.0,0.02145]
[1763467512512,0.04536,91423.0,91422.0,0.04474]
[1763467513813,0.04836,91423.0,91422.0,0.04474]
[1763467517018,0.04536,91421.0,91420.0,0.00219803]
[1763467518121,0.04536,91421.0,91420.0,0.02364803]
[1763467518712,0.04636,91421.0,91420.0,0.02364803]
[1763467519515,0.04736,91421.0,91420.0,0.04693803]
[1763467520722,0.002,91421.0,91420.0,0.04693803]
[1763467522221,0.04769,91421.0,91420.0,0.04693803]
[1763467525733,0.04669,91421.0,91420.0,0.04693803]
[1763467526335,0.04769,91421.0,91420.0,0.04693803]
[1763467526640,0.04769,91421.0,91420.0,0.00219803]
[1763467527138,0.04769,91421.0,91420.0,0.02325803]
[1763467527539,0.04769,91421.0,91420.0,0.00219803]
[1763467527934,0.04669,91421.0,91420.0,0.00219803]
[1763467528132,0.04769,91421.0,91420.0,0.02488803]
[1763467528535,0.04769,91421.0,91420.0,0.00219803]
[1763467528536,0.04669,91421.0,91420.0,0.00219803]
[1763467528735,0.04769,91421.0,91420.0,0.00219803]
[1763467529438,0.04769,91421.0,91420.0,0.04659803]
[1763467531843,0.002,91421.0,91420.0,0.04659803]
[1763467533040,0.02602,91421.0,91420.0,0.04659803]
[1763467533438,0.02602,91421.0,91420.0,0.00219803]
[1763467533439,0.08568119,91421.0,91420.0,0.00219803]
[1763467533741,0.04738,91421.0,91420.0,0.00219803]
[1763467534735,0.04738,91421.0,91420.0,0.04659803]
[1763467534935,0.10647282,91421.0,91420.0,0.04659803]
[1763467535138,0.04638,91421.0,91420.0,0.00219803]
[1763467535737,0.04738,91421.0,91420.0,0.00219803]
[1763467536238,0.04538,91412.0,91411.0,0.00016413]
[1763467537040,0.05921,91392.0,91390.0,0.03926948]
[1763467537242,0.04538,91388.0,91387.0,0.0444]
[1763467537840,0.04538,91391.0,91390.0,0.04659803]
[1763467540737,0.02318413,91400.0,91399.0,0.0444]
[1763467540940,0.00016413,91400.0,91399.0,0.0444]
[1763467542136,0.00116413,91400.0,91399.0,0.0444]
[1763467544048,0.00016413,91400.0,91399.0,0.0444]
[1763467544437,0.02318413,91400.0,91399.0,0.0444]
[1763467545149,0.04554413,91400.0,91399.0,0.0444]
[1763467547149,0.00016413,91400.0,91399.0,0.0444]
[1763467547542,0.02318413,91400.0,91399.0,0.0444]
[1763467549343,0.04554413,91400.0,91399.0,0.0444]
[1763467549546,0.00016413,91400.0,91399.0,0.0444]
[1763467550253,0.00116413,91400.0,91399.0,0.0444]
[1763467552849,0.02418413,91400.0,91399.0,0.0444]
[1763467553049,0.02318413,91400.0,91399.0,0.0444]
[1763467554850,0.02418413,91400.0,91399.0,0.0444]
[1763467556248,0.02318413,91400.0,91399.0,0.0444]
[1763467556449,0.02418413,91400.0,91399.0,0.0444]
[1763467556854,0.04654413,91400.0,91399.0,0.0444]
[1763467561054,0.00116413,91400.0,91399.0,0.0444]
[1763467561449,0.02346413,91400.0,91399.0,0.0444]
[1763467561642,0.00116413,91400.0,91399.0,0.05618]
[1763467561842,0.04637413,91400.0,91399.0,0.05618]
[1763467562046,0.04637413,91400.0,91399.0,0.0444]
[1763467563450,0.04521,91396.0,91395.0,0.31001]
[1763467564156,0.04521,91396.0,91390.0,0.04146751]
[1763467564157,0.04521,91391.0,91390.0,0.04788803]
[1763467565460,0.04621,91391.0,91390.0,0.04788803]
[1763467566047,0.0233,91391.0,91390.0,0.04788803]
[1763467566455,0.04621,91391.0,91390.0,0.04788803]
[1763467567057,0.04721,91391.0,91390.0,0.04788803]
[1763467567257,0.04621,91391.0,91390.0,0.04788803]
[1763467567554,0.0243,91391.0,91390.0,0.04788803]
[1763467567755,0.002,91391.0,91390.0,0.04788803]
[1763467567955,0.002,91391.0,91390.0,0.08715751]
[1763467568656,0.001,91391.0,91390.0,0.08715751]
[1763467568858,0.002,91391.0,91390.0,0.08715751]
[1763467569755,0.03939958,91402.0,91401.0,0.04569]
[1763467569962,0.04521,91414.0,91413.0,0.04569]
[1763467570353,0.03939958,91417.0,91415.0,0.04569]
[1763467570555,0.06169958,91420.0,91419.0,0.04569]
[1763467570753,0.08460958,91420.0,91419.0,0.04569]
[1763467571059,0.04521,91420.0,91419.0,0.04569]
[1763467572057,0.04621,91420.0,91419.0,0.04569]
[1763467572258,0.0233,91420.0,91419.0,0.04569]
[1763467573059,0.04521,91411.0,91410.0,0.0619924]
[1763467573264,0.04521,91411.0,91410.0,0.00236216]
[1763467574057,0.04521,91411.0,91410.0,0.00016413]
[1763467574864,0.06863973,91411.0,91410.0,0.00016413]
[1763467575066,0.1277391,91411.0,91410.0,0.00016413]
[1763467575659,0.1287391,91411.0,91410.0,0.00016413]
[1763467575858,0.1297391,91411.0,91410.0,0.00016413]
[1763467576057,0.1287391,91411.0,91410.0,0.00016413]
[1763467576361,0.07163973,91411.0,91410.0,0.00016413]
[1763467577368,0.07163973,91411.0,91410.0,0.00236216]
[1763467577567,0.07163973,91411.0,91410.0,0.02481216]
[1763467578270,0.07163973,91411.0,91410.0,0.00236216]
[1763467578667,0.07163973,91411.0,91410.0,0.04805216]
[1763467578865,0.02642973,91411.0,91410.0,0.04805216]
[1763467580167,0.02442973,91411.0,91410.0,0.04805216]
[1763467580366,0.02542973,91411.0,91410.0,0.04805216]
[1763467580562,0.02442973,91411.0,91410.0,0.04805216]
[1763467580772,0.04772973,91411.0,91410.0,0.04805216]
[1763467581470,0.04672973,91411.0,91410.0,0.04805216]
[1763467581870,0.04772973,91411.0,91410.0,0.04805216]
[1763467582070,0.06973973,91411.0,91410.0,0.04805216]
[1763467582661,0.06973973,91411.0,91410.0,0.00236216]
[1763467585069,0.06973973,91411.0,91410.0,0.04668216]
[1763467586471,0.06973973,91411.0,91410.0,0.00016413]
[1763467587473,0.04415,91393.0,91392.0,0.0438]
[1763467587975,0.06757973,91393.0,91392.0,0.0438]
[1763467588371,0.04449,91391.0,91390.0,0.00219803]
[1763467588564,0.05745,91384.0,91383.0,0.02177413]
[1763467588968,0.08087973,91384.0,91383.0,0.02177413]
[1763467589164,0.08087973,91384.0,91383.0,0.00016413]
[1763467589571,0.04449,91370.0,91369.0,0.04328084]
[1763467589871,0.04449,91370.0,91369.0,0.02173084]
[1763467590078,0.06791973,91370.0,91369.0,0.02173084]
[1763467590470,0.06791973,91370.0,91369.0,0.04328084]
[1763467592067,0.06791973,91370.0,91369.0,0.04428084]
[1763467597880,0.04624973,91370.0,91369.0,0.04428084]
[1763467598069,0.06791973,91370.0,91369.0,0.04428084]
[1763467599166,0.04624973,91370.0,91369.0,0.04428084]
[1763467599568,0.02342973,91370.0,91369.0,0.04428084]
[1763467599966,0.01865753,91370.0,91369.0,0.04428084]
[1763467601578,0.00016413,91379.0,91378.0,0.04316]
[1763467602573,0.04465413,91379.0,91378.0,0.04316]
[1763467602770,0.04449,91370.0,91369.0,0.04328084]
[1763467602974,0.04449,91370.0,91369.0,0.00012084]
[1763467603371,0.04449,91367.0,91338.0,0.03937827]
[1763467603576,0.02282,91340.0,91339.0,0.27692]
[1763467603975,0.01296,91344.0,91343.0,0.04316]
[1763467604268,0.04365422,91349.0,91348.0,0.04316]
[1763467604469,0.04378036,91349.0,91348.0,0.04316]
[1763467605378,0.04378036,91349.0,91348.0,0.04416]
[1763467605580,0.04378036,91349.0,91348.0,0.001]
[1763467606980,0.04378036,91349.0,91348.0,0.04416]
[1763467609183,0.02211036,91349.0,91348.0,0.04416]
[1763467609686,0.04378036,91349.0,91348.0,0.04416]
[1763467611378,0.00012614,91349.0,91348.0,0.04416]
[1763467611777,0.04461614,91349.0,91348.0,0.04416]
[1763467611977,0.04461614,91349.0,91348.0,0.02261]
[1763467612179,0.04461614,91349.0,91348.0,0.04416]
[1763467614879,0.04461614,91349.0,91348.0,0.04316]
[1763467618690,0.04403,91340.0,91339.0,0.04443422]
[1763467618889,0.04403,91340.0,91339.0,0.30887422]
[1763467619692,0.02282,91340.0,91339.0,0.30887422]
[1763467620795,0.05713,91344.0,91343.0,0.04505]
[1763467621587,0.00012614,91349.0,91348.0,0.04505]
[1763467621891,0.04370614,91349.0,91348.0,0.04505]
[1763467622691,0.00012614,91349.0,91348.0,0.04505]
[1763467624192,0.00016422,91358.0,91357.0,0.04505]
[1763467624394,0.00016422,91358.0,91357.0,0.30945]
[1763467625103,0.00016422,91358.0,91357.0,0.4190321]
[1763467625599,0.03936747,91382.0,91375.0,0.04505]
[1763467625600,0.05713,91376.0,91375.0,0.04505]
[1763467625895,0.08093343,91376.0,91375.0,0.04505]
[1763467626201,0.05713,91384.0,91383.0,0.04505]
[1763467626400,0.08093363,91384.0,91383.0,0.04505]
[1763467626711,0.00016422,91393.0,91383.0,0.04505]
[1763467626897,0.05713,91392.0,91391.0,0.04505]
[1763467627495,0.04358,91392.0,91391.0,0.04505]
[1763467627893,0.05813,91392.0,91391.0,0.04505]
[1763467628093,0.05813,91392.0,91391.0,0.02239]
[1763467628290,0.05813,91392.0,91391.0,0.04505]
[1763467628493,0.05913,91392.0,91391.0,0.04505]
[1763467628901,0.02437,91392.0,91391.0,0.04505]
[1763467629792,0.002,91392.0,91391.0,0.04505]
[1763467629996,0.00016422,91393.0,91392.0,0.04505]
[1763467630406,0.04385351,91406.0,91405.0,0.04505]
[1763467630591,0.06762913,91406.0,91405.0,0.04505]
[1763467630791,0.04385351,91406.0,91405.0,0.04505]
[1763467631405,0.02264351,91406.0,91405.0,0.04505]
[1763467631798,0.00127351,91406.0,91405.0,0.04505]
[1763467632803,3.51e-06,91406.0,91405.0,0.04505]
[1763467633202,3.51e-06,91406.0,91405.0,0.1545746]
[1763467634215,3.51e-06,91406.0,91405.0,0.04505]
[1763467634411,0.00016413,91415.0,91414.0,0.04505]
[1763467634604,0.02253413,91415.0,91414.0,0.30937]
[1763467634802,0.00016413,91415.0,91414.0,0.30937]
[1763467635401,0.04374413,91415.0,91414.0,0.30937]
[1763467635707,0.04374413,91415.0,91414.0,0.28667]
[1763467636104,0.04374413,91415.0,91414.0,0.30933]
[1763467636709,0.04474413,91415.0,91414.0,0.30933]
[1763467640400,0.04358,91411.0,91410.0,0.00219803]
[1763467640713,0.04358,91411.0,91410.0,0.26639803]
[1763467640916,0.04358,91411.0,91410.0,0.31144803]
[1763467641723,0.04358,91411.0,91410.0,0.2642]
[1763467641913,0.04358,91411.0,91410.0,0.26639803]
[1763467642219,0.04358,91411.0,91410.0,0.31144803]
[1763467642712,0.04458,91411.0,91410.0,0.26639803]
[1763467642903,0.04458,91411.0,91410.0,0.2642]
[1763467643108,0.04358,91397.0,91396.0,0.04521413]
[1763467643312,0.04358,91397.0,91396.0,0.26440413]
[1763467643508,0.04358,91397.0,91396.0,0.00016413]
[1763467643707,0.04358,91397.0,91396.0,0.26440413]
[1763467644118,0.04358,91397.0,91396.0,0.00016413]
[1763467644321,0.04358,91397.0,91396.0,0.23264413]
[1763467645410,0.04358,91397.0,91396.0,0.27769413]
[1763467646018,0.04358,91397.0,91396.0,0.23264413]
[1763467646220,0.04458,91397.0,91396.0,0.23264413]
[1763467646819,0.04458,91397.0,91396.0,0.00016413]
[1763467648914,0.05968,91392.0,91391.0,0.04276]
[1763467650211,0.06068,91392.0,91391.0,0.04276]
[1763467650709,0.05968,91392.0,91391.0,0.04276]
[1763467650915,0.001,91392.0,91391.0,0.04276]
[1763467651719,0.06068,91392.0,91391.0,0.04276]
[1763467652218,0.06168,91392.0,91391.0,0.04276]
[1763467652821,0.06068,91392.0,91391.0,0.04276]
[1763467653419,0.001,91392.0,91391.0,0.04276]
[1763467655025,0.03663,91408.0,91407.0,0.04276]
[1763467655322,0.02308,91408.0,91407.0,0.04276]
[1763467655723,0.05968,91408.0,91407.0,0.04276]
[1763467656425,0.06268,91408.0,91407.0,0.04276]
[1763467656730,0.003,91408.0,91407.0,0.04276]
[1763467656927,0.001,91408.0,91407.0,0.04276]
[1763467657224,0.002,91408.0,91407.0,0.04276]
[1763467657428,0.04833,91408.0,91407.0,0.04276]
[1763467658129,0.001,91408.0,91407.0,0.04276]
[1763467658619,0.04649413,91415.0,91414.0,0.04276]
[1763467659612,0.00016413,91415.0,91414.0,0.04276]
[1763467659816,0.00116413,91415.0,91414.0,0.04276]
[1763467661427,0.04649413,91415.0,91414.0,0.04276]
[1763467662214,0.04749413,91415.0,91414.0,0.04276]
[1763467662420,0.04633,91411.0,91410.0,0.04495803]
[1763467662724,0.04633,91411.0,91410.0,0.30911803]
[1763467664530,0.02308,91411.0,91410.0,0.30911803]
[1763467665120,0.04633,91411.0,91410.0,0.30911803]
[1763467665519,0.04733,91411.0,91410.0,0.30911803]
[1763467666126,0.04733,91411.0,91392.0,0.05868112]
[1763467666127,0.04633,91393.0,91392.0,0.05868112]
[1763467666323,0.01335,91376.0,91368.0,0.1864]
[1763467666524,0.04633,91369.0,91368.0,0.0213]
[1763467666731,0.04633,91369.0,91366.0,0.00027363]
[1763467666732,0.05968,91368.0,91367.0,0.26437109]
[1763467667031,0.08524737,91368.0,91367.0,9.109e-05]
[1763467670126,0.07189737,91368.0,91367.0,0.04285109]
[1763467670824,0.02556737,91368.0,91367.0,0.04285109]
[1763467672930,0.00016413,91377.0,91376.0,0.04276]
[1763467673736,0.02565708,91377.0,91376.0,0.04276]
[1763467674326,0.02665708,91377.0,91376.0,0.04276]
[1763467675431,0.07198708,91377.0,91376.0,0.04276]
[1763467677725,0.04649413,91377.0,91376.0,0.04276]
[1763467678329,0.02324413,91377.0,91376.0,0.04276]
[1763467678836,0.02266413,91377.0,91376.0,0.04427]
[1763467679932,0.05678,91368.0,91367.0,0.30872109]
[1763467680129,0.05694413,91377.0,91376.0,0.02176]
[1763467680537,0.04352,91368.0,91367.0,0.30872109]
[1763467681330,0.04368413,91377.0,91376.0,0.04427]
[1763467681737,0.05694413,91377.0,91376.0,0.04427]
[1763467682336,0.05694413,91377.0,91376.0,0.02176]
[1763467683322,0.05694413,91377.0,91376.0,0.04427]
[1763467684034,0.04352,91368.0,91367.0,0.30872109]
[1763467684532,0.05678,91368.0,91367.0,0.30872109]
[1763467685435,0.04352,91368.0,91367.0,0.30872109]
[1763467685938,0.05678,91368.0,91367.0,0.30872109]
[1763467686130,0.04352,91368.0,91367.0,0.30872109]
[1763467686526,0.05678,91368.0,91367.0,0.30872109]
[1763467686939,0.04352,91368.0,91367.0,0.30872109]
[1763467688543,0.05678,91368.0,91367.0,0.30872109]
[1763467691144,0.05678,91368.0,91367.0,0.04436109]
[1763467691636,0.08224642,91368.0,91367.0,0.04436109]
[1763467693644,0.08227435,91368.0,91367.0,0.04436109]
[1763467694036,0.06901435,91368.0,91367.0,0.04436109]
[1763467696240,0.06901435,91368.0,91367.0,9.109e-05]
[1763467697346,0.06901435,91368.0,91366.0,0.00027363]
[1763467697347,0.04352,91367.0,91366.0,0.00027363]
[1763467697549,0.06901435,91367.0,91366.0,0.00027363]
[1763467698239,0.06912291,91367.0,91366.0,0.00027363]
[1763467703847,0.06912291,91367.0,91366.0,0.04563363]
[1763467704351,0.06912291,91367.0,91366.0,0.00027363]
[1763467705638,0.06912291,91367.0,91366.0,0.02314363]
[1763467705842,0.06912291,91367.0,91366.0,0.04563363]
[1763467709345,0.06912291,91367.0,91366.0,0.00027363]
[1763467709652,0.06912291,91367.0,91366.0,0.04438363]
[1763467713553,0.00016413,91377.0,91370.0,0.00219803]
[1763467713751,0.00016413,91377.0,91376.0,0.04411]
[1763467714356,0.02207413,91377.0,91376.0,0.04411]
[1763467714951,0.00016413,91377.0,91376.0,0.04411]
[1763467715158,0.00116413,91377.0,91376.0,0.04411]
[1763467715456,0.0443,91397.0,91396.0,0.04411]
[1763467715841,0.0443,91397.0,91396.0,0.02174]
[1763467716656,0.0443,91388.0,91387.0,0.04427413]
[1763467718051,0.0453,91388.0,91387.0,0.04427413]
[1763467718257,0.0463,91388.0,91387.0,0.04427413]
[1763467718750,0.02391,91388.0,91387.0,0.04427413]
[1763467719763,0.0463,91388.0,91387.0,0.04427413]
[1763467719963,0.0453,91388.0,91387.0,0.04427413]
[1763467720147,0.0443,91388.0,91387.0,0.04427413]
[1763467720554,0.05695,91399.0,91398.0,0.04411]
[1763467721857,0.0463,91399.0,91398.0,0.04411]
[1763467722059,0.05895,91399.0,91398.0,0.04411]
[1763467722258,0.05895,91399.0,91398.0,0.02174]
[1763467722562,0.0443,91388.0,91387.0,0.04427413]
[1763467724150,0.0443,91388.0,91387.0,0.00016413]
[1763467724356,0.0443,91388.0,91387.0,0.02190413]
[1763467724561,0.0443,91388.0,91387.0,0.04427413]
[1763467729670,0.05695,91399.0,91398.0,0.04411]
[1763467729866,0.02191,91399.0,91398.0,0.04411]
[1763467730866,0.02291,91399.0,91398.0,0.04411]
[1763467731068,0.02391,91399.0,91398.0,0.04411]
[1763467731969,0.002,91399.0,91398.0,0.04411]
[1763467732463,0.001,91399.0,91398.0,0.04411]
[1763467732861,0.002,91399.0,91398.0,0.04411]
[1763467733169,0.0463,91399.0,91398.0,0.04411]
[1763467733769,0.0443,91388.0,91387.0,0.02190413]
[1763467733968,0.0443,91388.0,91387.0,0.04427413]
[1763467739971,0.05703,91399.0,91398.0,0.04522]
[1763467740362,0.04438,91399.0,91398.0,0.04522]
[1763467740777,0.05737,91399.0,91398.0,0.04522]
[1763467741374,0.04454413,91406.0,91405.0,0.04522]
[1763467741772,0.00016413,91406.0,91405.0,0.30934]
[1763467742068,0.05737,91420.0,91419.0,0.02257]
[1763467742271,0.05737,91420.0,91419.0,0.04522]
[1763467742468,0.05737,91420.0,91419.0,0.02257]
[1763467743267,0.05837,91420.0,91419.0,0.02257]
[1763467743481,0.001,91420.0,91419.0,0.04522]
[1763467743977,0.0009089,91420.0,91419.0,0.04522]
[1763467744382,0.00016413,91429.0,91428.0,0.04522]
[1763467744675,0.05226341,91455.0,91440.0,0.05786]
[1763467744878,0.05737,91448.0,91447.0,0.04522]
[1763467745782,0.05837,91448.0,91447.0,0.04522]
[1763467746376,0.05837,91448.0,91438.0,0.00016403]
[1763467746377,0.04438,91439.0,91438.0,0.00016403]
[1763467747976,0.04538,91439.0,91438.0,0.00016403]
[1763467748177,0.04638,91439.0,91438.0,0.00016403]
[1763467750882,0.04538,91439.0,91438.0,0.00016403]
[1763467751575,0.04638,91439.0,91438.0,0.00016403]
[1763467752075,0.04438,91439.0,91438.0,0.00016403]
[1763467752275,0.04538,91439.0,91438.0,0.00016403]
[1763467752878,0.04638,91439.0,91438.0,0.00016403]
[1763467753481,0.04638,91439.0,91438.0,0.02273403]
[1763467753874,0.04538,91439.0,91438.0,0.04538403]
[1763467754077,0.04638,91439.0,91438.0,4.03e-06]
[1763467754386,0.04638,91439.0,91403.0,0.05909421]
[1763467754387,0.04438,91412.0,91411.0,0.04522]
[1763467755673,0.04438,91412.0,91411.0,0.04622]
[1763467756173,0.04438,91412.0,91411.0,0.04722]
[1763467756984,0.04438,91412.0,91411.0,0.04622]
[1763467757185,0.04438,91412.0,91411.0,0.04722]
[1763467757570,0.04438,91412.0,91411.0,0.04622]
[1763467758974,0.04438,91412.0,91411.0,0.04522]
[1763467759175,0.04454403,91421.0,91420.0,0.04522]
[1763467759372,0.04454403,91421.0,91420.0,0.04741803]
[1763467759588,0.00016403,91421.0,91420.0,0.04741803]
[1763467761180,0.04639403,91421.0,91420.0,0.04741803]
[1763467761384,0.04739403,91421.0,91420.0,0.04741803]
[1763467762082,0.02329403,91421.0,91420.0,0.04741803]
[1763467763274,0.04639403,91421.0,91420.0,0.00219803]
[1763467766774,0.04639403,91421.0,91405.0,0.03931817]
[1763467766978,0.04524,91411.0,91410.0,0.04616803]
[1763467767382,0.01295,91420.0,91410.0,0.04616803]
[1763467767581,0.05581,91420.0,91419.0,0.0453]
[1763467768488,0.04286,91407.0,91406.0,0.08461817]
[1763467768679,0.04286,91407.0,91406.0,0.0453]
[1763467769078,0.04286,91407.0,91406.0,0.08461817]
[1763467769284,0.04286,91407.0,91406.0,0.0453]
[1763467769681,0.05554,91406.0,91405.0,0.02288]
[1763467770283,0.05554,91406.0,91405.0,0.0453]
[1763467770591,0.04286,91406.0,91405.0,0.0453]
[1763467775284,0.05554,91406.0,91405.0,0.0453]
[1763467776389,0.04286,91403.0,91400.0,0.00219803]
[1763467777386,0.04286,91403.0,91402.0,0.04546403]
[1763467778095,0.05554,91413.0,91412.0,0.0453]
[1763467778898,0.00016403,91421.0,91420.0,0.0453]
[1763467778899,0.04302403,91421.0,91420.0,0.0453]
[1763467779090,0.00016403,91421.0,91420.0,0.06083803]
[1763467779286,0.04302403,91421.0,91420.0,0.04749803]
[1763467780193,0.04302403,91421.0,91420.0,0.06083803]
[1763467780699,0.04302403,91421.0,91420.0,0.04749803]
[1763467780891,0.04302403,91421.0,91420.0,0.02507803]
[1763467781295,0.04302403,91421.0,91420.0,0.04749803]
[1763467782091,0.00016403,91421.0,91420.0,0.06083803]
[1763467782292,0.04302403,91421.0,91420.0,0.06083803]
[1763467783199,0.04302403,91421.0,91420.0,0.04749803]
[1763467784798,0.11159804,91420.0,91377.0,0.08212176]
[1763467784989,0.00999999,91380.0,91366.0,0.00027363]
[1763467785190,0.00999999,91360.0,91350.0,0.01334]
[1763467785393,0.02651657,91359.0,91350.0,0.00395795]
[1763467785688,0.00999999,91350.0,91343.0,0.01334]
[1763467785885,0.02651657,91349.0,91336.0,0.01334]
[1763467786085,0.02651657,91348.0,91340.0,0.00073267]
[1763467786288,0.02551657,91347.0,91340.0,0.00073267]
[1763467786490,9.366e-05,91348.0,91340.0,0.00073267]
[1763467786686,9.366e-05,91348.0,91340.0,0.07941456]
[1763467786896,9.366e-05,91348.0,91339.0,0.02288]
[1763467787099,0.00219803,91340.0,91339.0,0.0453]
[1763467787402,0.00119803,91340.0,91339.0,0.0453]
[1763467788187,0.00119803,91340.0,91339.0,0.12398189]
[1763467788398,0.00119803,91340.0,91339.0,0.0453]
[1763467788597,0.00119803,91340.0,91339.0,0.12398189]
[1763467788796,0.00119803,91340.0,91339.0,0.0453]
[1763467788998,0.00119803,91340.0,91339.0,0.12398189]
[1763467789195,0.00119803,91340.0,91339.0,0.0453]
[1763467789507,9.366e-05,91348.0,91347.0,0.0453]
[1763467789894,9.366e-05,91348.0,91347.0,0.12398189]
[1763467790295,9.366e-05,91348.0,91347.0,0.0453]
[1763467790498,9.366e-05,91348.0,91347.0,0.12398189]
[1763467796401,0.00016422,91352.0,91351.0,0.0453]
[1763467796600,0.00016422,91352.0,91351.0,0.12398189]
[1763467797000,0.03919952,91378.0,91370.0,0.01334]
[1763467797201,0.03919952,91379.0,91370.0,0.09302189]
[1763467798202,0.02857242,91378.0,91370.0,0.09302189]
[1763467798398,0.02857242,91377.0,91370.0,0.01434]
[1763467798603,0.02857242,91376.0,91370.0,0.01434]
[1763467798812,0.03919952,91379.0,91377.0,0.01312]
[1763467799109,0.0285764,91378.0,91377.0,0.01312]
[1763467799311,0.0285764,91378.0,91377.0,0.09180189]
[1763467799807,0.0285764,91378.0,91377.0,0.13668189]
[1763467800298,0.4295764,91378.0,91365.0,4.22e-06]
[1763467800501,0.00999999,91340.0,91332.0,0.01312]
[1763467800703,0.02856842,91339.0,91332.0,0.01312]
[1763467801001,0.02856842,91338.0,91337.0,0.02232]
[1763467801202,0.02856842,91338.0,91332.0,0.01312]
[1763467801397,0.02856842,91337.0,91332.0,0.01312]
[1763467801603,0.02856842,91336.0,91332.0,0.01312]
[1763467801901,0.02856842,91335.0,91334.0,0.02232]
[1763467803409,0.02856842,91335.0,91334.0,0.04488]
[1763467804110,0.02956842,91335.0,91334.0,0.04488]
[1763467804907,0.001,91335.0,91334.0,0.04488]
[1763467805105,0.00016422,91344.0,91343.0,0.04488]
[1763467805410,0.02870384,91344.0,91343.0,0.04488]
[1763467805806,0.02870384,91344.0,91340.0,0.01412]
[1763467806010,0.02853962,91343.0,91340.0,0.01412]
[1763467806610,0.02853962,91343.0,91342.0,0.02232]
[1763467806799,0.02853962,91343.0,91342.0,0.04488]
[1763467807204,0.02953962,91343.0,91342.0,0.04488]
[1763467813813,0.02953962,91343.0,91342.0,0.31204]
[1763467815610,0.02953962,91343.0,91342.0,0.312]
[1763467815803,0.09790361,91361.0,91360.0,0.058]
[1763467816007,0.26540316,91397.0,91369.0,0.04488]
[1763467816008,0.0019307,91370.0,91369.0,0.04488]
[1763467816208,0.09790361,91379.0,91378.0,0.04488]
[1763467816413,0.01193069,91380.0,91379.0,0.04488]
[1763467816620,0.0019307,91380.0,91370.0,0.01312]
[1763467816818,0.16702319,91380.0,91377.0,0.01312]
[1763467817112,0.22580917,91380.0,91377.0,0.03544]
[1763467817308,0.0019307,91380.0,91379.0,0.04488]
[1763467818208,0.04109554,91380.0,91379.0,0.04488]
[1763467818404,0.0019307,91380.0,91379.0,0.04488]
[1763467818809,0.0019307,91380.0,91377.0,0.01312]
[1763467818810,0.01193069,91380.0,91370.0,0.01312]
[1763467819011,0.03915862,91374.0,91370.0,0.01412]
[1763467819205,0.03915862,91374.0,91366.0,0.00016422]
[1763467819206,0.03915862,91373.0,91366.0,0.00016422]
[1763467819411,0.03915862,91367.0,91366.0,0.05816422]
[1763467819613,0.0019307,91370.0,91369.0,0.04488]
[1763467819819,0.0019307,91370.0,91369.0,0.02232]
[1763467820318,0.0019307,91370.0,91369.0,0.04504]
[1763467821714,0.06064189,91370.0,91369.0,0.04504]
[1763467822022,0.06164189,91370.0,91369.0,0.04504]
[1763467822409,0.06164189,91370.0,91366.0,0.01328422]
[1763467822727,0.05871119,91369.0,91366.0,0.03461422]
[1763467823022,0.06164189,91370.0,91366.0,0.05733422]
[1763467823419,0.0029307,91370.0,91369.0,0.04405]